fUST/lending_fUST_20250107
["ID","MTS","AMOUNT","RATE_DAILY","PERIOD"]
[347884024,1736181060275,-2074.093454,0.00019452,2]
[347884025,1736181060285,-2074.093454,0.00019452,2]
[347884026,1736181060295,-2074.093454,0.00019452,2]
[347884027,1736181060304,-500.0,0.00019452,3]
[347884028,1736181060314,-2074.093454,0.00019452,2]
[347884029,1736181060324,-501.37818628,0.00019452,3]
[347884030,1736181060334,-2074.093454,0.00019452,2]
[347884031,1736181060344,-500.0,0.00019452,3]
[347884032,1736181060353,-2074.09345,0.00019452,2]
[347884033,1736181060363,-500.0,0.00019452,3]
[347884034,1736181060381,-500.0,0.00019452,3]
[347884035,1736181060393,-500.0,0.00019452,3]
[347884036,1736181060403,-500.0,0.00019452,3]
[347884037,1736181060413,-765.42,0.00019452,3]
[347884038,1736181060422,-500.0,0.00019452,3]
[347884039,1736181060431,-500.0,0.00019452,3]
[347884040,1736181060441,-500.0,0.00019452,3]
[347884041,1736181060450,-500.0,0.00019452,3]
[347884042,1736181060462,-500.0,0.00019452,3]
[347884043,1736181060472,-500.0,0.00019452,3]
[347884044,1736181060482,-500.0,0.00019452,3]
[347884045,1736181060492,-500.0,0.00019452,3]
[347884046,1736181060503,-500.0,0.00019452,3]
[347884047,1736181060513,-925.48,0.00019452,3]
[347884048,1736181060522,-500.0,0.00019452,3]
[347884049,1736181060532,-691.79,0.00019452,3]
[347884050,1736181060542,-500.0,0.00019452,3]
[347884051,1736181060552,-500.0,0.00019452,3]
[347884052,1736181060562,-508.69561786,0.00019452,3]
[347884053,1736181060572,-500.0,0.00019452,2]
[347884054,1736181060581,-500.0,0.00019452,3]
[347884055,1736181060591,-500.0,0.00019452,3]
[347884056,1736181060600,-500.0,0.00019452,3]
[347884057,1736181060610,-500.0,0.00019452,3]
[347884058,1736181060623,-1068.399344,0.00019452,2]
[347884059,1736181060634,-737.81,0.00019452,3]
[347884060,1736181060644,-1302.66,0.00019452,3]
[347884061,1736181060654,-1068.399344,0.00019452,2]
[347884062,1736181060665,-500.0,0.00019452,3]
[347884063,1736181060675,-1068.399344,0.00019452,2]
[347884064,1736181060684,-500.0,0.00019452,3]
[347884065,1736181060694,-500.0,0.00019452,3]
[347884066,1736181060703,-1068.399344,0.00019452,2]
[347884067,1736181060713,-500.95873904,0.00019452,3]
[347884068,1736181060723,-571.84,0.00019452,3]
[347884069,1736181060733,-1068.399344,0.00019452,2]
[347884070,1736181060742,-1068.399338,0.00019452,2]
[347884071,1736181060752,-500.0,0.00019452,3]
[347884072,1736181060762,-500.0,0.00019452,3]
[347884073,1736181060771,-500.0,0.00019452,3]
[347884074,1736181060780,-500.0,0.00019452,3]
[347884075,1736181060790,-500.0,0.00019452,3]
[347884076,1736181060799,-500.0,0.00019452,3]
[347884077,1736181060809,-500.0,0.00019452,3]
[347884078,1736181060819,-500.0,0.00019452,3]
[347884079,1736181060828,-500.0,0.00019452,3]
[347884080,1736181060838,-500.0,0.00019452,3]
[347884081,1736181060847,-500.0,0.00019452,3]
[347884082,1736181060857,-500.0,0.00019452,3]
[347884083,1736181060871,-314.96309921,0.00019452,3]
[347884084,1736181060881,-500.0,0.00019452,3]
[347884085,1736181060895,-500.0,0.00019452,3]
[347884086,1736181060904,-500.0,0.00019452,3]
[347884087,1736181060915,-500.0,0.00019452,3]
[347884088,1736181060924,-500.0,0.00019452,3]
[347884089,1736181060934,-500.0,0.00019452,3]
[347884090,1736181060944,-500.0,0.00019452,3]
[347884091,1736181060954,-500.0,0.00019452,3]
[347884092,1736181060964,-500.0,0.00019452,3]
[347884093,1736181060975,-500.0,0.00019452,3]
[347884094,1736181060986,-500.0,0.00019452,3]
[347884095,1736181060995,-517.60349618,0.00019452,3]
[347884096,1736181061005,-500.0,0.00019452,3]
[347884097,1736181061014,-500.0,0.00019452,3]
[347884098,1736181061024,-500.0,0.00019452,3]
[347884099,1736181061034,-500.0,0.00019452,3]
[347884100,1736181061044,-500.0,0.00019452,3]
[347884101,1736181061054,-500.0,0.00019452,3]
[347884102,1736181061065,-500.0,0.00019452,3]
[347884103,1736181061074,-500.0,0.00019452,3]
[347884104,1736181061084,-500.0,0.00019452,3]
[347884105,1736181061094,-1803.22,0.00019452,3]
[347884106,1736181061103,-500.0,0.00019452,3]
[347884107,1736181061114,-500.0,0.00019452,3]
[347884108,1736181061125,-8785.27,0.00019452,3]
[347884109,1736181061135,-506.44965726,0.00019452,3]
[347884110,1736181061144,-612.18,0.00019452,3]
[347884111,1736181061154,-500.0,0.00019452,3]
[347884112,1736181061163,-500.0,0.00019452,3]
[347884113,1736181061173,-500.0,0.00019452,3]
[347884114,1736181061183,-500.0,0.00019452,3]
[347884115,1736181061192,-500.0,0.00019452,3]
[347884116,1736181061202,-1959.11,0.00019452,3]
[347884117,1736181061213,-216.86361084,0.00019452,3]
[347884118,1736181061223,-500.0,0.00019452,3]
[347884119,1736181061232,-500.0,0.00019452,3]
[347884120,1736181061242,-500.0,0.00019452,3]
[347884121,1736181061251,-555.56,0.00019452,3]
[347884122,1736181061261,-500.0,0.00019452,3]
[347884123,1736181061270,-1179.2,0.00019452,3]
[347884124,1736181061280,-1611.41,0.00019452,3]
[347884125,1736181061289,-151.0,0.00019452,2]
[347884126,1736181061298,-500.0,0.00019452,3]
[347884127,1736181061308,-500.0,0.00019452,3]
[347884128,1736181061318,-500.0,0.00019452,3]
[347884129,1736181061328,-500.0,0.00019452,3]
[347884130,1736181061338,-500.0,0.00019452,3]
[347884131,1736181061347,-500.0,0.00019452,3]
[347884132,1736181061356,-500.0,0.00019452,3]
[347884133,1736181061365,-4769.55,0.00019452,3]
[347884134,1736181061379,-500.0,0.00019452,3]
[347884135,1736181061390,-500.0,0.00019452,3]
[347884136,1736181061400,-541.66,0.00019452,3]
[347884137,1736181061410,-500.0,0.00019452,3]
[347884138,1736181061420,-500.0,0.00019452,3]
[347884139,1736181061430,-500.0,0.00019452,3]
[347884140,1736181061439,-500.0,0.00019452,3]
[347884141,1736181061450,-500.0,0.00019452,3]
[347884142,1736181061459,-500.0,0.00019452,3]
[347884143,1736181061469,-583.33,0.00019452,3]
[347884144,1736181061478,-500.0,0.00019452,3]
[347884145,1736181061488,-500.0,0.00019452,3]
[347884146,1736181061498,-2878.78,0.00019452,3]
[347884147,1736181061508,-500.0,0.00019452,3]
[347884148,1736181061518,-1532.87,0.00019452,3]
[347884149,1736181061528,-170.11818221,0.00019452,3]
[347884150,1736181061537,-500.0,0.00019452,3]
[347884151,1736181061547,-500.0,0.00019452,3]
[347884152,1736181061557,-500.0,0.00019452,3]
[347884153,1736181061567,-500.32,0.00019452,3]
[347884154,1736181061577,-500.0,0.00019452,3]
[347884155,1736181061587,-151.0,0.00019452,2]
[347884156,1736181061597,-500.0,0.00019452,3]
[347884157,1736181061606,-500.0,0.00019452,3]
[347884158,1736181061616,-500.0,0.00019452,3]
[347884159,1736181061627,-500.0,0.00019452,3]
[347884160,1736181061636,-500.0,0.00019452,3]
[347884161,1736181061645,-500.0,0.00019452,3]
[347884162,1736181061655,-500.45340423,0.00019452,3]
[347884163,1736181061664,-500.0,0.00019452,3]
[347884164,1736181061674,-500.0,0.00019452,3]
[347884165,1736181061684,-500.0,0.00019452,3]
[347884166,1736181061694,-500.0,0.00019452,3]
[347884167,1736181061704,-501.26404881,0.00019452,3]
[347884168,1736181061714,-500.0,0.00019452,3]
[347884169,1736181061723,-579.8045308,0.00019452,3]
[347884170,1736181061733,-500.0,0.00019452,3]
[347884171,1736181061742,-704.581805,0.00019452,2]
[347884172,1736181061751,-500.0,0.00019452,3]
[347884173,1736181061761,-503.72501014,0.00019452,3]
[347884174,1736181061771,-500.0,0.00019452,3]
[347884175,1736181061780,-704.581806,0.00019452,2]
[347884176,1736181061790,-500.0,0.00019452,3]
[347884177,1736181061800,-500.0,0.00019452,2]
[347884178,1736181061809,-572.57804208,0.00019452,3]
[347884179,1736181061820,-500.0,0.00019452,3]
[347884180,1736181061830,-500.0,0.00019452,3]
[347884181,1736181061839,-1392.02,0.00019452,3]
[347884182,1736181061849,-500.0,0.00019452,3]
[347884183,1736181061858,-401.11639797,0.00019452,3]
[347884184,1736181061868,-500.0,0.00019452,3]
[347884185,1736181061877,-500.0,0.00019452,3]
[347884186,1736181061891,-507.72780485,0.00019452,3]
[347884187,1736181061900,-500.0,0.00019452,3]
[347884188,1736181061909,-500.0,0.00019452,3]
[347884189,1736181061919,-500.0,0.00019452,3]
[347884190,1736181061931,-500.0,0.00019452,3]
[347884191,1736181061940,-500.0,0.00019452,3]
[347884192,1736181061950,-500.0,0.00019452,3]
[347884193,1736181061959,-500.65665988,0.00019452,3]
[347884194,1736181061971,-1006.12,0.00019452,3]
[347884195,1736181061982,-500.0,0.00019452,3]
[347884196,1736181061991,-500.0,0.00019452,3]
[347884197,1736181062001,-188.0,0.00019452,2]
[347884198,1736181062011,-588.48,0.00019452,3]
[347884199,1736181062020,-500.0,0.00019452,3]
[347884200,1736181062030,-500.0,0.00019452,3]
[347884201,1736181062039,-500.0,0.00019452,3]
[347884202,1736181062049,-500.0,0.00019452,3]
[347884203,1736181062058,-500.0,0.00019452,3]
[347884204,1736181062067,-500.0,0.00019452,3]
[347884205,1736181062076,-500.0,0.00019452,3]
[347884206,1736181062085,-500.0,0.00019452,3]
[347884207,1736181062094,-500.0,0.00019452,3]
[347884208,1736181062104,-500.0,0.00019452,3]
[347884209,1736181062114,-555.89,0.00019452,3]
[347884210,1736181062124,-500.0,0.00019452,3]
[347884211,1736181062134,-500.0,0.00019452,3]
[347884212,1736181062143,-500.0,0.00019452,3]
[347884213,1736181062153,-500.0,0.00019452,3]
[347884214,1736181062163,-693.48,0.00019452,3]
[347884215,1736181062172,-2753.82,0.00019452,3]
[347884216,1736181062182,-500.0,0.00019452,3]
[347884217,1736181062191,-500.0,0.00019452,3]
[347884218,1736181062201,-500.0,0.00019452,3]
[347884219,1736181062210,-410.21638171,0.00019452,3]
[347884220,1736181062220,-500.0,0.00019452,3]
[347884221,1736181062229,-548.37565378,0.00019452,3]
[347884222,1736181062353,-500.0,0.00019452,3]
[347884223,1736181062364,-509.37058517,0.00019452,3]
[347884224,1736181062376,-500.0,0.00019452,3]
[347884225,1736181062385,-1539.45,0.00019452,3]
[347884226,1736181062395,-500.0,0.00019452,3]
[347884227,1736181062404,-500.0,0.00019452,3]
[347884228,1736181062414,-524.27,0.00019452,3]
[347884229,1736181062424,-857.46,0.00019452,3]
[347884230,1736181062434,-625.21,0.00019452,3]
[347884231,1736181062443,-500.0,0.00019452,3]
[347884232,1736181062453,-301.48831961,0.00019452,3]
[347884239,1736181601370,168.596597,0.00013973,2]
[347884241,1736181901508,874.0,0.00025,120]
[347884242,1736182012343,1000.0,0.0001505,2]
[347884243,1736182029447,1000.0,0.0001505,2]
[347884244,1736182041119,-176.4980491,0.00017052,2]
[347884245,1736182041140,-375.06772188,0.00017224,2]
[347884246,1736182041163,-497.94726826,0.00017605,2]
[347884247,1736182041187,-497.94726826,0.00017725,2]
[347884248,1736182041209,-237.916241,0.00017825,2]
[347884249,1736182041232,-300.0,0.00018113,2]
[347884250,1736182041252,-479.0,0.00018113,2]
[347884251,1736182041276,-20682.0344614,0.00018114,2]
[347884252,1736182041296,-214.98905647,0.000183,2]
[347884253,1736182041316,-214.98905646,0.000183,2]
[347884254,1736182041338,-535.628,0.0001848,2]
[347884255,1736182041360,-352.9020598,0.00018541,2]
[347884256,1736182041541,-439.19733458,0.000189,2]
[347884257,1736182041564,-306.9108852,0.00018986,2]
[347884258,1736182041587,-411.1399732,0.00018986,2]
[347884259,1736182041609,-153.0,0.00018986,2]
[347884260,1736182041631,-153.0,0.00018986,2]
[347884261,1736182041654,-302.90913937,0.00019,2]
[347884262,1736182041678,-266.743,0.00019022,2]
[347884263,1736182041700,-203.0582716,0.00019073,2]
[347884264,1736182041721,-576.68192617,0.00019078,2]
[347884265,1736182041743,-502.74456642,0.00019173,2]
[347884266,1736182041765,-267.95883388,0.00019173,2]
[347884267,1736182041787,-266.55072074,0.00019173,2]
[347884268,1736182041807,-260.05738414,0.00019173,2]
[347884269,1736182041829,-500.0,0.00019173,2]
[347884270,1736182041850,-166.05432455,0.00019173,2]
[347884271,1736182041873,-503.6687696,0.00019173,2]
[347884272,1736182041895,-271.56017929,0.00019173,2]
[347884273,1736182041919,-500.0,0.00019173,2]
[347884274,1736182041940,-153.03446642,0.00019173,2]
[347884275,1736182041963,-500.0,0.00019173,2]
[347884276,1736182041985,-160.6306041,0.00019173,2]
[347884277,1736182042007,-500.0,0.00019173,2]
[347884278,1736182042029,-500.0,0.00019173,2]
[347884279,1736182042051,-468.73763203,0.00019173,2]
[347884280,1736182042072,-500.0,0.00019173,2]
[347884281,1736182042094,-265.71868349,0.00019173,2]
[347884282,1736182042115,-500.0,0.00019173,2]
[347884283,1736182042138,-283.48671577,0.00019173,2]
[347884284,1736182042161,-261.72229294,0.00019173,2]
[347884285,1736182042186,-4045.7800687,0.00019177,2]
[347884286,1736182042208,-500.0,0.00019177,2]
[347884287,1736182042231,-223.05753304,0.00019177,2]
[347884288,1736182042253,-322.70625256,0.00019177,2]
[347884289,1736182042280,-500.0,0.00019177,2]
[347884290,1736182042305,-500.0,0.00019177,2]
[347884291,1736182042332,-500.0,0.00019177,2]
[347884292,1736182042357,-500.0,0.00019177,2]
[347884293,1736182042381,-500.0,0.00019177,2]
[347884294,1736182042408,-500.0,0.00019177,2]
[347884295,1736182042433,-331.67002005,0.00019177,2]
[347884296,1736182042458,-500.0,0.00019177,2]
[347884297,1736182042483,-165.29954789,0.00019177,2]
[347884298,1736182042507,-500.0,0.00019177,2]
[347884299,1736182042533,-275.44773278,0.00019177,2]
[347884300,1736182042557,-500.0,0.00019177,2]
[347884301,1736182042580,-500.0,0.00019177,2]
[347884302,1736182042605,-500.0,0.00019177,2]
[347884303,1736182042628,-525.0,0.00019177,2]
[347884304,1736182042651,-500.0,0.00019178,2]
[347884305,1736182042675,-477.03911807,0.00019178,2]
[347884306,1736182042698,-500.0,0.00019178,2]
[347884307,1736182042719,-585.79436646,0.00019178,2]
[347884308,1736182042742,-500.0,0.00019178,2]
[347884309,1736182042764,-500.0,0.00019178,2]
[347884310,1736182042792,-500.0,0.00019178,2]
[347884311,1736182042815,-500.0,0.00019178,2]
[347884312,1736182042837,-500.0,0.00019178,2]
[347884313,1736182042858,-502.70866287,0.00019178,2]
[347884314,1736182042880,-501.23049456,0.00019178,2]
[347884315,1736182042902,-500.0,0.00019178,2]
[347884316,1736182042925,-500.0,0.00019178,2]
[347884317,1736182042948,-500.0,0.00019178,2]
[347884318,1736182042971,-500.0,0.00019178,2]
[347884319,1736182042993,-318.02126946,0.00019178,2]
[347884320,1736182043016,-501.0215994,0.00019178,2]
[347884321,1736182043038,-534.59,0.00019178,2]
[347884322,1736182043060,-500.0,0.00019178,2]
[347884323,1736182043083,-500.0,0.00019178,2]
[347884324,1736182043106,-495.31853385,0.00019178,2]
[347884325,1736182043128,-500.0,0.00019178,2]
[347884326,1736182043151,-500.0,0.00019178,2]
[347884327,1736182043181,-500.0,0.00019178,2]
[347884328,1736182043204,-500.0,0.00019178,2]
[347884329,1736182043227,-504.38462313,0.00019178,2]
[347884330,1736182043250,-500.0,0.00019178,2]
[347884331,1736182043272,-498.51273859,0.00019178,2]
[347884332,1736182043295,-500.0,0.00019178,2]
[347884333,1736182043317,-151.0,0.00019178,2]
[347884334,1736182043339,-500.0,0.00019178,2]
[347884335,1736182043361,-151.0,0.00019178,2]
[347884336,1736182043385,-643.768153,0.00019178,2]
[347884337,1736182043408,-500.0,0.00019178,2]
[347884338,1736182043430,-500.0,0.00019178,2]
[347884339,1736182043452,-500.0,0.00019178,2]
[347884340,1736182043474,-500.0,0.00019178,2]
[347884341,1736182043496,-500.0,0.00019178,2]
[347884342,1736182043518,-502.75628789,0.00019178,2]
[347884343,1736182043540,-500.0,0.00019178,2]
[347884344,1736182043562,-500.0,0.00019178,2]
[347884345,1736182043584,-500.81929331,0.00019178,2]
[347884346,1736182043606,-500.0,0.00019178,2]
[347884347,1736182043627,-500.0,0.00019178,2]
[347884348,1736182043651,-500.0,0.00019178,2]
[347884349,1736182043676,-500.0,0.00019178,2]
[347884350,1736182043698,-500.0,0.00019178,2]
[347884351,1736182043719,-500.0,0.00019178,2]
[347884352,1736182043742,-500.0,0.00019178,2]
[347884353,1736182043763,-500.0,0.00019178,2]
[347884354,1736182043785,-500.0,0.00019178,2]
[347884355,1736182043806,-500.0,0.00019178,2]
[347884356,1736182043828,-500.0,0.00019178,2]
[347884357,1736182043850,-604.92448144,0.00019178,2]
[347884358,1736182043873,-500.0,0.00019178,2]
[347884359,1736182043894,-500.0,0.00019178,2]
[347884360,1736182043917,-500.0,0.00019178,2]
[347884361,1736182043939,-502.39856109,0.00019178,2]
[347884362,1736182043960,-500.0,0.00019178,2]
[347884363,1736182043981,-151.0,0.00019178,2]
[347884364,1736182044002,-151.0,0.00019178,2]
[347884365,1736182044023,-500.0,0.00019178,2]
[347884366,1736182044044,-151.0,0.00019178,2]
[347884367,1736182044065,-151.0,0.00019178,2]
[347884368,1736182044089,-151.0,0.00019178,2]
[347884369,1736182044110,-500.0,0.00019178,2]
[347884370,1736182044131,-151.0,0.00019178,2]
[347884371,1736182044152,-152.295891,0.00019178,2]
[347884372,1736182048642,1000.0,0.0001505,2]
[347884373,1736182156247,5792.0,0.0001505,2]
[347884759,1736182235530,-292.79822306,0.000189,2]
[347884761,1736182235540,-529.4941473,0.00018986,2]
[347884763,1736182235549,-1659.7599168,0.00019111,2]
[347884765,1736182235562,-745.0,0.00019172,2]
[347884767,1736182235571,-503.03282137,0.00019173,2]
[347884769,1736182235580,-500.0,0.00019173,2]
[347884771,1736182235589,-500.0,0.00019173,2]
[347884773,1736182235598,-364.35175267,0.00019173,2]
[347884775,1736182235607,-500.0,0.00019173,2]
[347884777,1736182235616,-151.0,0.00019178,2]
[347884779,1736182235626,-151.0,0.00019178,2]
[347884781,1736182235635,-151.0,0.00019178,2]
[347884783,1736182235644,-174.191939,0.00019178,2]
[347884785,1736182235654,-500.0,0.00019178,2]
[347884787,1736182235663,-500.0,0.00019178,2]
[347884789,1736182235672,-500.72363358,0.00019178,2]
[347884791,1736182235681,-500.0,0.00019178,2]
[347884793,1736182235691,-500.0,0.00019178,2]
[347884795,1736182235700,-607.13649725,0.00019178,2]
[347884797,1736182235709,-389.207052,0.00019178,2]
[347884799,1736182235718,-389.207052,0.00019178,2]
[347884801,1736182235728,-389.207052,0.00019178,2]
[347884803,1736182235737,-389.207052,0.00019178,2]
[347884805,1736182235746,-389.207052,0.00019178,2]
[347884807,1736182235755,-389.207052,0.00019178,2]
[347884809,1736182235764,-389.207052,0.00019178,2]
[347884811,1736182235773,-389.207052,0.00019178,2]
[347884813,1736182235783,-389.207052,0.00019178,2]
[347884815,1736182235792,-389.207052,0.00019178,2]
[347884817,1736182235803,-389.207052,0.00019178,2]
[347884819,1736182235813,-389.207052,0.00019178,2]
[347884821,1736182235822,-504.09900591,0.00019178,2]
[347884823,1736182235830,-389.207052,0.00019178,2]
[347884825,1736182235840,-389.207052,0.00019178,2]
[347884827,1736182235849,-389.207052,0.00019178,2]
[347884829,1736182235858,-389.207052,0.00019178,2]
[347884831,1736182235869,-389.207052,0.00019178,2]
[347884833,1736182235879,-389.207052,0.00019178,2]
[347884835,1736182235888,-500.75020973,0.00019178,2]
[347884837,1736182235897,-500.0,0.00019178,2]
[347884839,1736182235907,-500.0,0.00019178,2]
[347884841,1736182235916,-500.0,0.00019178,2]
[347884843,1736182235925,-500.0,0.00019178,2]
[347884845,1736182235934,-500.0,0.00019178,2]
[347884847,1736182235946,-500.0,0.00019178,2]
[347884849,1736182235956,-500.0,0.00019178,2]
[347884851,1736182235966,-500.0,0.00019178,2]
[347884853,1736182235976,-500.0,0.00019178,2]
[347884855,1736182235986,-504.19747622,0.00019178,2]
[347884857,1736182235995,-224.84158998,0.00019178,2]
[347884859,1736182236004,-500.0,0.00019178,2]
[347884861,1736182236014,-500.0,0.00019178,2]
[347884863,1736182236023,-500.0,0.00019178,2]
[347884865,1736182236032,-500.0,0.00019178,2]
[347884867,1736182236041,-500.0,0.00019178,2]
[347884869,1736182236050,-500.0,0.00019178,2]
[347884871,1736182236062,-500.0,0.00019178,2]
[347884873,1736182236071,-500.0,0.00019178,2]
[347884875,1736182236081,-582.40464668,0.00019178,2]
[347884877,1736182236090,-500.0,0.00019178,2]
[347884879,1736182236100,-500.0,0.00019178,2]
[347884881,1736182236110,-500.0,0.00019178,2]
[347884883,1736182236119,-501.20819634,0.00019178,2]
[347884885,1736182236128,-579.83034062,0.00019178,2]
[347884887,1736182236138,-500.29880191,0.00019178,2]
[347884889,1736182236147,-500.0,0.00019178,2]
[347884891,1736182236156,-500.0,0.00019178,2]
[347884893,1736182236166,-500.0,0.00019178,2]
[347884895,1736182236175,-500.0,0.00019178,2]
[347884897,1736182236184,-500.0,0.00019178,2]
[347884900,1736182236194,-500.0,0.00019178,2]
[347884901,1736182236203,-669.9,0.00019178,2]
[347884904,1736182236213,-500.0,0.00019178,2]
[347884906,1736182236222,-501.8843824,0.00019178,2]
[347884908,1736182236232,-500.0,0.00019178,2]
[347884909,1736182236243,-500.0,0.00019178,2]
[347884911,1736182236252,-500.0,0.00019178,2]
[347884913,1736182236262,-515.07,0.00019178,2]
[347884916,1736182236271,-502.66031082,0.00019178,2]
[347884918,1736182236281,-500.0,0.00019178,2]
[347884920,1736182236291,-500.0,0.00019178,2]
[347884921,1736182236300,-500.0,0.00019178,2]
[347884924,1736182236313,-500.0,0.00019178,2]
[347884926,1736182236324,-500.0,0.00019178,2]
[347884928,1736182236334,-508.68865927,0.00019178,2]
[347884930,1736182236343,-565.250357,0.00019178,2]
[347884931,1736182236352,-565.250357,0.00019178,2]
[347884933,1736182236361,-438.53963009,0.00019178,2]
[347884936,1736182236379,-126.71072691,0.00019178,2]
[347884938,1736182236388,-565.250357,0.00019178,2]
[347884940,1736182236398,-565.250357,0.00019178,2]
[347884942,1736182236407,-565.250357,0.00019178,2]
[347884944,1736182236417,-500.0,0.00019178,2]
[347884946,1736182236426,-565.250357,0.00019178,2]
[347884948,1736182236435,-565.250357,0.00019178,2]
[347884955,1736182236445,-500.0,0.00019178,2]
[347884956,1736182236585,-565.250357,0.00019178,2]
[347884957,1736182236595,-565.250357,0.00019178,2]
[347884958,1736182236605,-565.250357,0.00019178,2]
[347884959,1736182236615,-565.250357,0.00019178,2]
[347884960,1736182236624,-565.250357,0.00019178,2]
[347884961,1736182236634,-565.250357,0.00019178,2]
[347884962,1736182236644,-565.250357,0.00019178,2]
[347884963,1736182236653,-565.250357,0.00019178,2]
[347884964,1736182236663,-500.0,0.00019178,2]
[347884965,1736182236672,-500.0,0.00019178,2]
[347884966,1736182236681,-500.0,0.00019178,2]
[347884967,1736182236691,-500.0,0.00019178,2]
[347884968,1736182236700,-500.0,0.00019178,2]
[347884969,1736182236709,-500.0,0.00019178,2]
[347884970,1736182236719,-500.0,0.00019178,2]
[347884971,1736182236729,-500.0,0.00019178,2]
[347884972,1736182236739,-301.55031041,0.00019178,2]
[347884973,1736182236748,-500.0,0.00019178,2]
[347884974,1736182236757,-500.0,0.00019178,2]
[347884975,1736182236767,-500.0,0.00019178,2]
[347884976,1736182236776,-500.0,0.00019178,2]
[347884977,1736182236785,-500.0,0.00019178,2]
[347884978,1736182236796,-500.0,0.00019178,2]
[347884979,1736182236806,-500.0,0.00019178,2]
[347884980,1736182236815,-500.0,0.00019178,2]
[347884981,1736182236825,-500.0,0.00019178,2]
[347884982,1736182236835,-500.0,0.00019178,2]
[347884983,1736182236844,-500.0,0.00019178,2]
[347884985,1736182236854,-500.1747361,0.00019178,2]
[347884987,1736182236863,-463.377505,0.00019178,2]
[347884989,1736182236872,-463.377505,0.00019178,2]
[347884991,1736182236882,-463.377505,0.00019178,2]
[347884993,1736182236892,-463.377505,0.00019178,2]
[347884994,1736182236901,-463.377505,0.00019178,2]
[347884995,1736182236911,-500.0,0.00019178,2]
[347884997,1736182236921,-463.377505,0.00019178,2]
[347884999,1736182236930,-463.377505,0.00019178,2]
[347885001,1736182236941,-463.377505,0.00019178,2]
[347885003,1736182236951,-463.377505,0.00019178,2]
[347885004,1736182236961,-463.377505,0.00019178,2]
[347885005,1736182236970,-463.377505,0.00019178,2]
[347885007,1736182236979,-463.377505,0.00019178,2]
[347885008,1736182236989,-463.377505,0.00019178,2]
[347885009,1736182236999,-463.377505,0.00019178,2]
[347885011,1736182237010,-463.377505,0.00019178,2]
[347885013,1736182237019,-463.377505,0.00019178,2]
[347885014,1736182237030,-463.377505,0.00019178,2]
[347885015,1736182237039,-463.377505,0.00019178,2]
[347885016,1736182237049,-500.0,0.00019178,2]
[347885017,1736182237060,-500.0,0.00019178,2]
[347885018,1736182237069,-592.64,0.00019178,2]
[347885019,1736182237078,-500.0,0.00019178,2]
[347885020,1736182237088,-500.0,0.00019178,2]
[347885021,1736182237098,-500.0,0.00019178,2]
[347885022,1736182237108,-500.0,0.00019178,2]
[347885023,1736182237118,-500.0,0.00019178,2]
[347885024,1736182237128,-500.0,0.00019178,2]
[347885025,1736182237138,-500.0,0.00019178,2]
[347885026,1736182237147,-500.0,0.00019178,2]
[347885027,1736182237156,-500.0,0.00019178,2]
[347885028,1736182237166,-500.0,0.00019178,2]